bitfinex/quotes_ETHUSD_20251015
["timestamp","ask_amount","ask_price","bid_price","bid_amount"]
[1760544719861,0.2297,3990.9,3988.6,2.3616]
[1760544720033,0.2297,3990.9,3990.2,2.5061007]
[1760544720229,0.4694,3991.5,3990.1,0.1159]
[1760544720430,0.2297,3991.4,3990.1,0.4735]
[1760544720729,0.2297,3991.4,3990.2,2.50614004]
[1760544720730,0.6991,3991.4,3990.2,2.50614004]
[1760544720947,0.4694,3991.3,3989.8,0.1159]
[1760544721540,2.50568283,3991.0,3990.1,2.50615958]
[1760544721746,0.2297,3990.9,3989.8,0.1159]
[1760544721952,0.2297,3990.9,3989.5,0.1159]
[1760544721953,0.4694,3990.8,3989.5,0.1159]
[1760544722305,2.50634713,3989.9,3989.0,2.50683645]
[1760544722465,2.50634713,3989.9,3988.8,2.50700736]
[1760544722466,0.2297,3989.8,3988.3,0.3576]
[1760544722670,2.50645411,3989.7,3988.6,2.5070923]
[1760544722850,0.4694,3989.6,3988.1,0.1188]
[1760544723165,0.4694,3989.6,3987.2,2.50798857]
[1760544723166,1.728,3989.4,3987.2,0.3576]
[1760544723352,2.50713183,3988.7,3987.6,2.50775827]
[1760544723561,2.50713183,3988.7,3987.2,0.3576]
[1760544723562,0.2297,3988.8,3987.2,0.3576]
[1760544723747,0.2297,3988.8,3985.9,0.1159]
[1760544723748,2.50765177,3987.8,3987.0,2.50808992]
[1760544724043,0.2297,3988.3,3987.1,2.63082656]
[1760544724232,0.2297,3988.3,3987.1,0.1228]
[1760544724419,2.50785835,3987.5,3986.1,0.002]
[1760544724832,2.50785835,3987.5,3986.7,2.50830979]
[1760544725027,2.97712744,3987.7,3986.1,0.002]
[1760544725028,2.97711348,3987.7,3986.9,2.50821208]
[1760544725260,0.4694,3987.7,3986.1,0.002]
[1760544725445,2.50783925,3987.5,3986.7,2.50831722]
[1760544725654,2.73708925,3988.3,3986.1,0.002]
[1760544725655,2.50813232,3987.1,3986.1,2.51070953]
[1760544725818,0.4314,3987.4,3986.1,0.002]
[1760544726252,2.50802824,3987.2,3986.1,2.51070374]
[1760544726458,10.41381484,3987.9,3986.1,0.002]
[1760544726459,2.50832941,3986.8,3986.1,0.002]
[1760544726647,0.4314,3987.1,3986.1,0.002]
[1760544726851,0.2283,3986.7,3986.1,0.002]
[1760544727036,2.73664928,3986.7,3986.1,0.002]
[1760544727364,0.2283,3986.7,3986.1,0.002]
[1760544727660,0.2283,3987.2,3986.2,2.62455485]
[1760544727860,1.728,3987.1,3986.2,0.1159]
[1760544728066,0.6597,3987.2,3986.1,0.002]
[1760544728431,1.728,3987.1,3986.1,0.002]
[1760544728622,2.50840537,3986.6,3986.1,0.002]
[1760544728821,1.728,3986.9,3986.3,2.50858566]
[1760544729159,1.728,3986.9,3986.2,2.50860834]
[1760544729361,1.728,3986.9,3986.1,0.1179]
[1760544729662,0.6597,3987.2,3986.4,2.50852744]
[1760544729907,1.728,3987.0,3986.3,2.50858179]
[1760544730105,0.6597,3987.2,3986.1,0.002]
[1760544730106,1.9563,3987.2,3986.1,0.002]
[1760544730315,2.50827949,3986.8,3986.1,0.002]
[1760544730511,0.4314,3986.9,3986.3,2.50856072]
[1760544730710,0.2283,3987.2,3986.1,0.1179]
[1760544730873,1.728,3987.4,3986.7,2.5083125]
[1760544731069,2.50786282,3987.5,3986.1,0.1179]
[1760544731070,0.4314,3987.5,3986.1,0.1179]
[1760544731468,2.50814962,3987.1,3986.3,2.50859016]
[1760544731700,2.50817772,3987.0,3986.2,2.50864297]
[1760544732004,2.50817772,3987.0,3986.1,0.1179]
[1760544732005,0.4314,3986.9,3986.1,0.002]
[1760544732412,0.6336,3987.6,3986.1,0.002]
[1760544732711,2.93960978,3987.0,3986.1,0.002]
[1760544732916,2.9395645,3987.0,3986.1,0.002]
[1760544733070,0.4314,3987.0,3986.1,0.002]
[1760544733410,2.5082144,3986.9,3986.1,0.002]
[1760544733646,2.50841444,3986.6,3986.1,0.002]
[1760544733773,2.50851573,3986.5,3986.1,0.002]
[1760544733972,0.4314,3986.5,3986.1,0.002]
[1760544734197,0.4314,3986.4,3986.1,0.002]
[1760544734380,0.4314,3987.0,3986.2,2.50865485]
[1760544734582,2.1594,3987.0,3986.1,2.51071679]
[1760544734812,0.4314,3987.0,3986.1,0.1179]
[1760544735016,0.4314,3987.0,3986.1,0.002]
[1760544735182,2.93955541,3987.0,3986.3,2.50853985]
[1760544735507,0.4314,3987.0,3986.1,0.002]
[1760544735918,4.23665485,3986.2,3986.1,0.002]
[1760544736217,1.728,3986.2,3986.1,0.002]
[1760544736504,4.23665485,3986.2,3986.1,0.002]
[1760544736705,4.66805485,3986.2,3986.1,0.002]
[1760544737631,1.728,3986.2,3986.1,0.002]
[1760544738204,1.728,3986.6,3986.1,0.002]
[1760544738423,1.728,3986.6,3986.1,2.51071691]
[1760544738600,1.728,3987.1,3986.1,0.002]
[1760544738806,1.728,3986.5,3986.1,0.002]
[1760544739005,2.50857653,3986.4,3986.1,0.002]
[1760544739206,1.728,3986.6,3986.1,0.002]
[1760544739505,4.23665485,3986.2,3986.1,0.002]
[1760544739856,2.50878282,3986.0,3985.7,0.002]
[1760544740032,2.50886364,3985.9,3985.7,0.002]
[1760544740343,1.728,3985.9,3985.7,0.002]
[1760544740844,4.23673574,3986.1,3985.7,0.002]
[1760544741045,0.4314,3986.8,3985.7,0.002]
[1760544741241,1.728,3986.8,3985.7,0.002]
[1760544741440,1.728,3987.0,3986.3,2.50854351]
[1760544741613,0.4314,3987.1,3986.2,0.1159]
[1760544741814,2.50815458,3987.0,3986.3,2.50854633]
[1760544742048,0.4314,3987.1,3985.8,2.50890661]
[1760544742211,0.4314,3987.1,3986.0,2.50876954]
[1760544742411,2.50835617,3986.7,3986.0,2.50877977]
[1760544742820,0.4314,3987.1,3985.7,0.002]
[1760544743022,1.728,3987.0,3986.2,2.50860879]
[1760544743522,0.4314,3986.9,3985.7,0.002]
[1760544744225,2.50868667,3986.2,3985.7,0.002]
[1760544744419,0.4314,3986.9,3985.7,0.002]
[1760544744745,2.50851121,3986.5,3985.8,2.50888984]
[1760544744906,2.50833622,3986.8,3985.8,2.50888656]
[1760544745112,2.50844822,3986.6,3985.7,0.002]
[1760544745338,1.728,3986.6,3985.9,2.50878292]
[1760544745554,1.728,3986.7,3986.0,2.50872091]
[1760544745852,2.50846281,3986.6,3985.7,0.002]
[1760544746020,2.50765035,3987.8,3986.1,0.1159]
[1760544746021,1.728,3987.1,3986.1,0.1159]
[1760544746362,2.1594,3987.5,3986.2,2.50865485]
[1760544746524,0.2283,3987.7,3986.8,2.5082233]
[1760544746728,0.2283,3987.7,3986.9,2.50819445]
[1760544746729,2.50781463,3987.6,3986.9,2.50819445]
[1760544746912,2.5078337,3987.6,3986.9,2.50816485]
[1760544747107,2.50791083,3987.4,3986.1,0.4755]
[1760544747307,2.5078818,3987.5,3986.1,0.4755]
[1760544747522,2.50790324,3987.4,3986.7,2.50829129]
[1760544747722,1.728,3987.6,3986.6,2.50839134]
[1760544747723,2.50798183,3987.3,3986.6,2.50839134]
[1760544747944,1.728,3987.4,3986.2,2.50859371]
[1760544748155,0.4314,3987.4,3986.2,2.50863326]
[1760544748348,2.50827758,3986.8,3986.2,2.50863326]
[1760544748534,2.50822592,3986.9,3986.2,2.50863326]
[1760544748937,2.50787904,3987.5,3986.1,0.1159]
[1760544749145,0.4314,3987.8,3986.6,2.5083464]
[1760544749454,0.4314,3987.8,3986.3,0.3596]
[1760544749625,2.5079337,3987.4,3986.3,0.3596]
[1760544749955,0.4314,3987.8,3986.2,2.50865485]
[1760544749956,2.50803294,3987.2,3986.2,2.50865485]
[1760544750125,2.50803294,3987.2,3986.4,2.50848556]
[1760544750311,0.4314,3987.1,3985.7,0.002]
[1760544750512,2.93952787,3987.1,3985.7,2.51092539]
[1760544750714,2.50863803,3986.3,3985.7,0.002]
[1760544750916,2.50847786,3986.5,3985.8,2.50889223]
[1760544751144,2.50854019,3986.4,3985.7,2.51096143]
[1760544751323,2.508584,3986.4,3985.7,2.51096143]
[1760544751533,2.50864672,3986.3,3985.7,0.002]
[1760544751727,2.50884831,3985.9,3985.7,0.002]
[1760544752038,2.50868018,3986.2,3985.7,0.002]
[1760544752241,2.50890661,3985.8,3985.7,0.002]
[1760544752456,2.73716406,3985.9,3985.7,0.002]
[1760544752960,2.94030661,3985.8,3985.7,0.002]
[1760544753365,4.66830661,3985.8,3985.7,0.002]
[1760544755068,2.1594,3985.8,3985.7,0.002]
[1760544755239,1.728,3985.8,3985.7,0.002]
[1760544755442,0.2283,3986.3,3985.7,0.002]
[1760544755628,2.73690733,3986.3,3985.7,0.002]
[1760544755833,0.2283,3986.3,3985.7,0.002]
[1760544756229,4.23690661,3985.8,3985.7,0.002]
[1760544756758,4.66920661,3985.8,3985.7,0.002]
[1760544757276,1.728,3985.8,3985.7,0.002]
[1760544757571,4.23690661,3985.8,3985.7,0.002]
[1760544757747,1.728,3985.8,3985.7,0.002]
[1760544758061,4.66920661,3985.8,3985.7,0.002]
[1760544759261,2.73695001,3986.3,3985.7,0.002]
[1760544759262,2.50875719,3986.1,3985.7,0.002]
[1760544759464,2.73691389,3986.3,3985.7,0.002]
[1760544759465,2.50882702,3986.0,3985.7,0.002]
[1760544759630,1.728,3986.5,3985.7,0.002]
[1760544759832,2.50869593,3986.2,3985.7,0.002]
[1760544760046,0.225,3986.7,3985.8,2.50890661]
[1760544760047,2.50847119,3986.5,3985.8,2.50890661]
[1760544760249,2.50847119,3986.5,3985.7,0.002]
[1760544760250,2.50872655,3986.1,3985.7,0.002]
[1760544760480,1.728,3987.8,3985.8,2.50890661]
[1760544760650,2.5093317,3986.8,3986.1,2.50867003]
[1760544760980,2.5093317,3986.8,3986.2,0.1159]
[1760544760981,2.50840576,3986.6,3986.2,0.1159]
[1760544761192,2.50854237,3986.4,3985.7,2.51094936]
[1760544761358,0.4333,3986.8,3985.7,0.002]
[1760544761559,2.50888757,3985.9,3985.7,0.002]
[1760544761879,2.50890661,3985.8,3985.7,0.002]
[1760544762183,0.4323,3985.9,3985.7,0.002]
[1760544762350,0.4323,3986.3,3985.7,0.002]
[1760544762544,2.50890661,3985.8,3985.7,0.002]
[1760544763187,0.4323,3986.5,3985.7,0.002]
[1760544763483,1.728,3986.3,3985.7,0.002]
[1760544763652,0.001,3986.8,3985.7,0.002]
[1760544764170,0.001,3986.8,3986.3,2.50853428]
[1760544764370,0.001,3986.8,3985.7,0.002]
[1760544764598,2.94069215,3986.7,3985.7,0.002]
[1760544764781,2.50846744,3986.5,3985.7,2.51092484]
[1760544765152,2.50846744,3986.5,3985.8,2.50890071]
[1760544765651,2.50859359,3986.3,3985.7,0.002]
[1760544765895,2.50840315,3986.6,3985.7,0.002]
[1760544766099,2.5085979,3986.3,3985.7,0.002]
[1760544766398,0.4323,3986.6,3985.7,0.002]
[1760544766558,1.728,3986.5,3985.7,0.002]
[1760544766752,2.50857352,3986.4,3985.7,0.002]
[1760544767096,1.728,3986.6,3985.8,2.50890661]
[1760544767392,1.728,3986.6,3986.0,2.50873258]
[1760544767616,1.728,3986.7,3986.1,0.1159]
[1760544767826,0.001,3986.8,3985.7,0.002]
[1760544767994,1.728,3986.3,3985.7,0.002]
[1760544768194,4.2365968,3986.3,3985.7,0.002]
[1760544768516,1.728,3986.6,3985.8,2.50886017]
[1760544768679,1.728,3986.4,3985.8,2.50886017]
[1760544768883,2.50861504,3986.3,3985.7,0.002]
[1760544769079,0.4323,3986.4,3985.7,0.002]
[1760544769319,1.728,3986.6,3985.8,2.50885192]
[1760544769617,1.728,3986.4,3985.7,2.51096139]
[1760544769824,1.729,3986.8,3985.7,0.002]
[1760544770022,0.4333,3986.8,3985.7,0.002]
[1760544770331,1.728,3986.6,3985.7,0.002]
[1760544770508,2.50845103,3986.6,3985.7,0.002]
[1760544770714,2.50880061,3986.0,3985.7,0.002]
[1760544771096,2.50890661,3985.8,3985.7,0.002]
[1760544771515,2.5088606,3985.9,3985.7,0.002]
[1760544771712,2.50890661,3985.8,3985.7,0.002]
[1760544771917,2.94120661,3985.8,3985.7,0.002]
[1760544773216,2.50890661,3985.8,3985.7,0.002]
[1760544773794,2.50886046,3985.9,3985.7,0.002]
[1760544774117,1.729,3986.2,3985.7,0.002]
[1760544774331,2.50886287,3985.9,3985.7,0.002]
[1760544774624,2.50971242,3986.2,3985.7,0.002]
[1760544774625,0.001,3986.2,3985.7,0.002]
[1760544774811,0.001,3986.2,3985.7,2.51095853]
[1760544775036,1.728,3986.1,3985.7,0.002]
[1760544775333,0.001,3986.2,3985.7,0.002]
[1760544775534,2.50888904,3985.9,3985.7,0.002]
[1760544775829,1.728,3986.1,3985.7,0.002]
[1760544776031,2.50872804,3986.1,3985.7,0.002]
[1760544776231,1.728,3986.1,3985.7,0.002]
[1760544776544,2.50872558,3986.1,3985.7,0.002]
[1760544776717,0.001,3986.2,3985.7,0.002]
[1760544777031,4.23676271,3986.1,3985.7,0.002]
[1760544777219,2.5088443,3985.9,3985.7,0.002]
[1760544777402,2.94128946,3986.0,3985.7,0.002]
[1760544777601,1.729,3986.2,3985.7,0.002]
[1760544777602,0.001,3986.2,3985.7,0.002]
[1760544778003,1.728,3986.1,3985.7,0.002]
[1760544778235,1.728,3986.0,3985.7,0.002]
[1760544778410,1.729,3986.2,3985.7,0.002]
[1760544778615,2.50965774,3986.2,3985.7,0.002]
[1760544778811,0.4335,3986.2,3985.7,0.002]
[1760544779033,0.001,3986.2,3986.1,2.50871779]
[1760544779234,0.001,3986.2,3985.7,0.002]
[1760544779399,0.4325,3986.1,3985.7,0.002]
[1760544780001,2.50878073,3986.0,3985.7,0.002]
[1760544780335,2.5088326,3986.0,3985.7,0.002]
[1760544780644,2.50890661,3985.8,3985.7,0.002]
[1760544781007,0.001,3986.2,3985.7,0.002]
[1760544781305,2.50966577,3986.2,3985.7,0.002]
[1760544781504,0.001,3986.2,3985.7,0.002]
[1760544781920,2.50970062,3986.2,3985.7,0.002]
[1760544782323,0.001,3986.2,3985.7,0.002]
[1760544782537,0.001,3986.2,3985.8,2.50886556]
[1760544782744,0.001,3986.2,3985.7,0.002]
[1760544782938,2.50880818,3986.0,3985.7,0.002]
[1760544783345,2.50890661,3985.8,3985.7,0.002]
[1760544783937,2.94140661,3985.8,3985.7,0.002]
[1760544784458,0.001,3986.2,3985.7,0.3616]
[1760544784649,0.001,3986.2,3986.1,2.62461779]
[1760544785026,0.001,3986.2,3986.1,2.98421779]
[1760544785226,0.001,3986.2,3986.1,0.1159]
[1760544785450,0.001,3986.2,3986.1,2.62461779]
[1760544785653,0.001,3986.2,3986.1,0.1159]
[1760544785853,0.001,3986.2,3985.7,0.002]
[1760544786027,2.50890661,3985.8,3985.7,0.002]
[1760544786436,2.97300661,3985.8,3985.7,0.002]
[1760544786770,4.70100661,3985.8,3985.7,0.002]
[1760544788267,4.87056956,3985.7,3985.6,1e-08]
[1760544788478,4.87056956,3985.7,3984.9,1e-08]
[1760544788479,4.87101028,3985.0,3984.9,1e-08]
[1760544788787,4.87101028,3985.0,3982.2,0.3596]
[1760544788788,2.3616,3984.9,3982.2,0.3596]
[1760544788937,1.728,3984.4,3982.6,0.3596]
[1760544789265,0.6336,3984.7,3981.9,0.00444755]
[1760544789425,0.2303,3983.1,3982.3,2.51105057]
[1760544789632,2.51091653,3982.7,3981.9,0.00444755]
[1760544790166,0.4641,3982.9,3981.9,0.00444755]
[1760544790351,2.5111338,3982.3,3981.9,0.00444755]
[1760544790528,2.51109682,3982.4,3981.9,0.00444755]
[1760544790728,2.51117909,3982.2,3981.9,0.00444755]
[1760544790944,0.6336,3982.9,3981.9,0.00444755]
[1760544791259,0.2303,3983.1,3981.9,0.00644755]
[1760544791559,2.51094543,3982.6,3981.9,0.00644755]
[1760544791864,2.3616,3982.6,3981.9,0.00644755]
[1760544792029,2.51113497,3982.3,3981.9,0.00644755]
[1760544792231,2.51130085,3982.0,3981.9,0.00644755]
[1760544792668,4.70340085,3982.0,3981.9,0.00644755]
[1760544793171,2.1921,3982.0,3981.9,0.00644755]
[1760544793327,5.33700085,3982.0,3981.9,0.00644755]
[1760544794465,4.70340085,3982.0,3981.9,0.00644755]
[1760544794634,5.33700085,3982.0,3981.9,0.00644755]
[1760544795029,0.4641,3982.5,3981.9,0.00644755]
[1760544795225,0.4641,3982.0,3981.9,0.00644755]
[1760544795427,0.6336,3982.4,3981.9,0.00644755]
[1760544795631,2.51106173,3982.4,3981.9,0.00644755]
[1760544795859,0.4641,3982.5,3981.9,0.00644755]
[1760544796269,2.1921,3983.0,3981.9,2.51778393]
[1760544796578,0.4641,3983.7,3982.6,2.51089452]
[1760544796865,0.4641,3983.9,3982.7,0.1208]
[1760544797032,0.4641,3983.9,3983.1,2.51059982]
[1760544797363,0.82216359,3984.8,3983.5,2.51032111]
[1760544797600,0.82216359,3984.8,3983.1,2.51060731]
[1760544797601,0.6944,3984.8,3983.1,2.51060731]
[1760544797772,0.6944,3984.8,3983.2,0.3596]
[1760544798074,1.728,3984.2,3982.7,0.1208]
[1760544798277,2.50992612,3984.2,3983.4,2.51040827]
[1760544798442,1.728,3984.2,3983.5,2.51034639]
[1760544798783,0.6944,3984.8,3984.1,2.50996503]
[1760544798784,0.2303,3984.8,3984.1,2.50996503]
[1760544799151,0.2303,3984.8,3984.2,2.50989013]
[1760544799353,0.2303,3985.2,3983.8,0.3596]
[1760544799552,0.2303,3985.2,3984.5,2.50969079]
[1760544799891,2.50936258,3985.1,3984.2,2.50985286]
[1760544800050,1.728,3984.9,3983.8,0.3596]
[1760544800249,1.728,3984.9,3982.7,1.8488]
[1760544800250,0.4641,3985.0,3983.2,0.3596]
[1760544800672,0.6336,3984.9,3983.2,2.51052208]
[1760544800996,2.1921,3984.8,3983.3,2.51046919]
[1760544801163,2.97369921,3984.7,3982.7,0.1208]
[1760544801366,2.51006257,3984.0,3983.1,2.5105626]
[1760544801570,1.728,3984.5,3983.8,2.51012082]
[1760544801871,0.4641,3984.8,3983.2,0.3596]
[1760544802062,2.50959921,3984.7,3983.8,2.51012]
[1760544802265,1.728,3984.7,3984.0,2.51001673]
[1760544802492,0.4641,3984.8,3983.2,0.3596]
[1760544802802,0.4641,3984.8,3982.7,0.1208]
[1760544802979,2.50985942,3984.3,3982.9,0.3596]
[1760544803297,2.50991416,3984.2,3982.7,0.1208]
[1760544803607,1.728,3984.6,3983.6,2.51027242]
[1760544803752,2.3616,3984.8,3983.8,2.51015488]
[1760544803952,0.4641,3985.0,3983.2,0.3596]
[1760544803953,0.4641,3985.0,3983.2,2.87012518]
[1760544804188,1.728,3984.3,3983.3,2.51048125]
[1760544804491,1.728,3984.7,3983.2,0.3596]
[1760544804794,1.728,3984.7,3984.3,2.50984289]
[1760544804951,0.2303,3985.2,3983.7,0.3596]
[1760544805169,0.6944,3986.0,3985.1,0.1159]
[1760544805372,0.001,3986.2,3985.1,0.1159]
[1760544805810,0.001,3986.2,3985.6,2.5089829]
[1760544805971,0.001,3986.2,3985.9,2.50879901]
[1760544806170,2.50970222,3986.2,3985.2,2.50928435]
[1760544806413,2.50908362,3985.6,3984.5,2.50970788]
[1760544806618,2.50908362,3985.6,3984.9,2.50946267]
[1760544806909,0.001,3986.2,3984.7,0.3596]
[1760544807108,0.4651,3986.1,3984.0,0.1228]
[1760544807312,2.50898934,3985.7,3984.9,2.50942833]
[1760544807518,2.7393923,3985.6,3984.8,2.50953368]
[1760544808112,0.2303,3985.6,3984.7,2.50954003]
[1760544808404,0.2303,3985.6,3984.1,0.3596]
[1760544808773,0.2303,3985.6,3984.0,0.1228]
[1760544808982,0.4641,3985.5,3984.0,0.1228]
[1760544809531,0.2303,3985.6,3984.1,0.3596]
[1760544809693,0.2303,3985.6,3985.0,2.50939936]
[1760544809694,1.9583,3985.6,3985.0,2.50939936]
[1760544809886,0.2303,3985.6,3984.1,0.3596]
[1760544810221,0.2303,3985.6,3985.1,2.50933547]
[1760544810514,0.2303,3985.9,3985.0,2.50939971]
[1760544810817,0.6336,3985.8,3984.5,2.50966349]
[1760544811114,0.001,3985.5,3984.5,2.50970198]
[1760544811314,0.001,3985.5,3984.5,2.50967693]
[1760544811315,2.50928067,3985.3,3984.5,2.50967693]
[1760544811484,2.51009703,3985.5,3984.5,2.50967693]
[1760544811485,2.50929,3985.2,3984.5,2.50967693]
[1760544811882,0.001,3985.5,3984.0,0.1228]
[1760544812088,0.001,3985.5,3984.5,2.50971979]
[1760544812282,2.50928085,3985.3,3984.0,2.63283828]
[1760544812508,2.50928085,3985.3,3984.3,2.50984598]
[1760544812718,2.50947642,3984.9,3984.0,0.1228]
[1760544813018,0.4641,3985.2,3983.7,2.51017122]
[1760544813317,3.14282138,3985.3,3982.8,2.51275459]
[1760544813318,0.6336,3984.9,3982.8,2.51275459]
[1760544813509,2.5100231,3984.1,3982.8,0.002]
[1760544813707,0.6944,3984.8,3982.9,0.3596]
[1760544813907,2.50964453,3984.7,3984.0,2.50999965]
[1760544814110,1.9583,3984.8,3984.2,2.50990713]
[1760544814306,1.728,3984.8,3984.3,2.5098042]
[1760544814508,1.728,3985.0,3984.1,0.1228]
[1760544814708,0.001,3985.5,3984.1,0.1228]
[1760544814908,1.728,3985.2,3984.3,2.509832]
[1760544815109,1.728,3985.3,3984.1,0.1228]
[1760544815311,1.728,3985.3,3984.7,2.50959218]
[1760544815611,2.51010221,3985.5,3984.5,2.50967123]
[1760544815932,2.51010221,3985.5,3984.1,0.4824]
[1760544815933,0.001,3985.5,3984.2,2.50991416]
[1760544816137,2.50964114,3984.7,3984.1,0.1228]
[1760544816304,2.50945523,3985.0,3984.2,2.50986752]
[1760544816644,2.50945523,3985.0,3984.1,0.1228]
[1760544816645,1.728,3984.7,3984.1,2.6327612]
[1760544816802,0.4543,3985.4,3984.1,0.1228]
[1760544817423,0.001,3985.5,3984.2,0.3596]
[1760544817633,2.50929002,3985.2,3984.5,2.50967565]
[1760544817825,1.728,3985.1,3984.1,0.1228]
[1760544817994,1.728,3985.1,3983.9,2.51006004]
[1760544817995,1.728,3984.6,3983.9,2.51006004]
[1760544818189,0.4543,3985.1,3983.2,0.3596]
[1760544818190,0.226,3984.8,3983.2,0.3596]
[1760544818434,0.6803,3984.8,3983.2,0.3596]
[1760544818640,2.50989533,3984.3,3983.2,0.3596]
[1760544818926,2.50989533,3984.3,3983.7,2.51021571]
[1760544819236,0.6803,3984.8,3982.8,0.3616]
[1760544819237,0.226,3984.8,3984.2,2.50989717]
[1760544819536,0.4543,3985.2,3983.8,0.1228]
[1760544820031,0.4543,3985.2,3984.4,2.50978392]
[1760544820236,0.4543,3985.2,3984.3,2.5098289]
[1760544820447,0.4543,3985.2,3984.6,2.50965674]
[1760544820607,0.4543,3985.2,3984.7,2.50958909]
[1760544820811,0.001,3985.5,3984.6,2.5096412]
[1760544821027,0.4543,3985.4,3983.8,0.1228]
[1760544821209,2.1823,3985.4,3983.8,0.1228]
[1760544821699,2.1823,3985.4,3984.6,2.50961343]
[1760544821899,0.4543,3985.4,3983.8,0.1228]
[1760544822239,0.001,3985.5,3985.2,2.5092794]
[1760544822424,0.001,3985.5,3982.7,0.1208]
[1760544822745,0.001,3985.5,3985.4,2.50915842]
[1760544823440,0.001,3985.5,3985.1,0.1159]
[1760544823623,0.001,3985.5,3985.4,2.50915842]
[1760544824773,0.001,3985.5,3984.2,0.3596]
[1760544824926,0.001,3985.5,3985.3,2.50921789]
[1760544825353,0.4543,3985.4,3985.0,2.50941001]
[1760544825521,0.4543,3985.4,3985.1,2.50931664]
[1760544825726,0.001,3985.5,3985.1,2.50931664]
[1760544825955,0.001,3985.5,3984.5,0.1159]
[1760544826271,0.001,3985.5,3985.4,2.50915842]
[1760544826436,0.001,3985.5,3985.1,2.50934484]
[1760544826640,0.001,3985.5,3985.4,2.50915842]
[1760544827458,0.001,3985.5,3984.5,0.1159]
[1760544827694,2.96350732,3985.4,3984.5,0.1159]
[1760544827827,1.728,3985.2,3983.9,2.51005378]
[1760544828026,0.4543,3985.4,3984.0,2.5099919]
[1760544828226,2.5093005,3985.2,3984.5,2.5096812]
[1760544828468,2.50934941,3985.1,3984.5,2.5096812]
[1760544828666,1.728,3985.3,3984.5,2.5096812]
[1760544828667,2.50927091,3985.3,3984.5,2.5096812]
[1760544828967,2.50927091,3985.3,3983.8,2.99256411]
[1760544828968,1.728,3985.3,3984.0,2.51002795]
[1760544829169,1.728,3985.3,3984.7,2.50957275]
[1760544829670,0.001,3985.4,3984.8,2.50949387]
[1760544829877,0.001,3985.4,3984.8,2.50952239]
[1760544830186,0.001,3985.4,3985.0,2.50938626]
[1760544830333,0.001,3985.4,3984.1,0.002]
[1760544830671,2.51016001,3985.4,3984.6,2.50960064]
[1760544830966,2.51016001,3985.4,3984.1,2.51192973]
[1760544830967,0.001,3985.4,3984.1,2.51192973]
[1760544831173,2.50932739,3985.2,3984.2,2.50991416]
[1760544831376,0.4543,3985.2,3984.1,0.002]
[1760544831575,0.001,3985.4,3984.1,0.002]
[1760544831870,4.23816187,3985.4,3984.7,2.50955693]
[1760544832029,4.23816187,3985.4,3985.0,2.50936639]
[1760544832030,0.001,3985.4,3985.0,2.50936639]
[1760544832225,0.001,3985.4,3984.2,0.3596]
[1760544832226,0.001,3985.4,3984.5,2.50969294]
[1760544832530,0.001,3985.4,3985.2,2.50922256]
[1760544832731,0.001,3985.4,3985.3,2.50922138]
[1760544833770,0.001,3985.4,3985.3,2.86882138]
[1760544834282,0.001,3985.4,3985.3,2.50922138]
[1760544834480,0.001,3985.4,3983.9,2.627]
[1760544834631,0.001,3985.4,3984.1,0.3616]
[1760544834964,0.001,3985.4,3985.0,2.50937073]
[1760544835127,0.001,3985.4,3984.6,2.50964416]
[1760544835363,0.001,3985.4,3984.1,2.87153097]
[1760544835563,0.001,3985.4,3985.0,2.50936849]
[1760544835788,0.001,3985.4,3985.1,2.50932313]
[1760544836361,0.001,3985.4,3984.2,2.50991416]
[1760544836591,0.001,3985.4,3985.0,2.5093599]
[1760544836793,0.001,3985.4,3985.1,2.50933954]
[1760544837304,0.001,3985.4,3985.3,2.50922138]
[1760544837595,0.001,3985.4,3985.2,2.50924751]
[1760544837759,0.001,3985.4,3985.0,2.50935627]
[1760544838095,0.001,3985.4,3985.3,2.50922138]
[1760544838482,0.001,3985.4,3984.9,2.86901048]
[1760544838677,0.001,3985.4,3985.3,2.50922138]
[1760544839478,0.001,3985.4,3985.3,2.86882138]
[1760544840802,0.001,3985.4,3985.3,2.50922138]
[1760544841380,0.001,3985.4,3984.3,2.50984003]
[1760544841567,0.466,3985.4,3984.2,0.3596]
[1760544841767,0.466,3985.4,3984.9,2.50943331]
[1760544841990,0.001,3985.4,3985.2,2.50927193]
[1760544842299,0.001,3985.4,3985.3,2.50922138]
[1760544842700,0.001,3985.4,3985.1,0.1159]
[1760544842918,0.001,3985.4,3985.3,2.50922138]
[1760544843421,0.001,3986.1,3985.4,2.072156]
[1760544843584,0.001,3986.6,3986.1,0.6336]
[1760544843780,1e-08,3986.8,3986.7,4.86994023]
[1760544844321,1e-08,3986.8,3986.7,4.59194023]
[1760544844527,1e-08,3986.8,3986.7,5.25062363]
[1760544844727,1e-08,3986.8,3986.7,5.22554023]
[1760544845025,1e-08,3986.8,3986.7,10.66572123]
[1760544845222,1e-08,3986.8,3986.7,5.22554023]
[1760544845427,1e-08,3986.8,3986.7,7.85154023]
[1760544846082,1e-08,3986.8,3986.7,4.23634023]
[1760544846383,1e-08,3986.8,3986.7,4.61702363]
[1760544846623,1e-08,3987.9,3987.0,2.50815149]
[1760544846828,1e-08,3987.9,3987.8,2.63044832]
[1760544846981,1e-08,3987.9,3987.8,4.99204832]
[1760544847184,1e-08,3987.9,3987.8,7.97264832]
[1760544847585,1e-08,3987.9,3987.8,11.85331332]
[1760544847829,1e-08,3987.9,3987.8,11.22647932]
[1760544848484,1e-08,3987.9,3987.8,8.60147932]
[1760544848686,1e-08,3987.9,3987.8,11.22647932]
[1760544849224,0.4392,3990.1,3988.2,13.57904649]